[Event "Asian Zonal-ch 3.5 Women 2019"]
[Site "Zi Bo"]
[Date "2019.09.05"]
[Round "2.1"]
[White "Lei, Tingjie"]
[Black "Li, Yunshan"]
[Result "1/2-1/2"]
[ECO "C50"]
[WhiteElo "2483"]
[BlackElo "2261"]
[Annotator "ChessBase"]
[PlyCount "171"]
[EventDate "2019.09.05"]
[EventType "swiss"]
[EventCountry "CHN"]
[SourceTitle "playchess.com"]
[Source "ChessBase"]
[SourceQuality "1"]
[TimeControl "5400+30"]

1. e4 {[%emt 0:00:00]} e5 {[%emt 0:00:00]} 2. Bc4 {[%emt 0:00:00]} Bc5 {[%emt 0:00:22]} 3. Nf3 {[%emt 0:00:50]} Nc6 {[%emt 0:00:08]} 4. O-O {[%emt 0:00:15]} Nf6 {[%emt 0:00:27]} 5. d3 {[%emt 0:00:08]} O-O {[%emt 0:00:29]} 6. a4 {[%emt 0:00:06]} a5 {[%emt 0:05:35]} 7. c3 {[%emt 0:00:28]} h6 {[%emt 0:00:33]} 8. d4 {[%emt 0:06:45]} Bb6 {[%emt 0:00:35]} 9. dxe5 {[%emt 0:00:59]} Nxe4 {[%emt 0:00:12]} 10. Bd5 {[%emt 0:01:16]} Nc5 {[%emt 0:01:09]} 11. Na3 {[%emt 0:02:05]} d6 {[%emt 0:08:03]} 12. exd6 {[%emt 0:04:55]} Qxd6 {[%emt 0:00:48]} 13. Nc4 {[%emt 0:01:22]} Qg6 {[%emt 0:00:37]} 14. Nxb6 {[%emt 0:21:10]} cxb6 {[%emt 0:00:07]} 15. Be3 {[%emt 0:10:35]} Rd8 {[%emt 0:25:04]} 16. Bxc5 {[%emt 0:00:54]} bxc5 {[%emt 0:00:55]} 17. Qb3 {[%emt 0:00:17]} Be6 {[%emt 0:12:11]} 18. Bxe6 {[%emt 0:01:38]} Qxe6 {[%emt 0:00:10]} 19. Qxe6 {[%emt 0:08:39]} fxe6 {[%emt 0:00:06]} 20. Rfe1 {[%emt 0:00:02]} Rd6 {[%emt 0:00:51]} 21. Kf1 {[%emt 0:04:12]} Kf7 {[%emt 0:02:04]} 22. Ra3 {[%emt 0:02:45]} Rb8 {[%emt 0:06:35]} 23. Ke2 {[%emt 0:07:00]} b5 {[%emt 0:04:21]} 24. axb5 {[%emt 0:00:20]} Rxb5 {[%emt 0:00:05]} 25. Rb1 {[%emt 0:00:40]} Rd8 {[%emt 0:03:28]} 26. Nd2 {[%emt 0:04:47]} Ne5 {[%emt 0:01:55]} 27. Ra4 {[%emt 0:00:11]} g5 {[%emt 0:04:31]} 28. g3 {[%emt 0:03:25]} Rdb8 {[%emt 0:05:31]} 29. Re4 {[%emt 0:04:26]} Kf6 {[%emt 0:02:26]} 30. f4 {[%emt 0:00:04]} gxf4 {[%emt 0:01:04]} 31. Rxf4+ {[%emt 0:00:11]} Ke7 {[%emt 0:00:42]} 32. Re4 {[%emt 0:00:28]} Nf7 {[%emt 0:00:54]} 33. b3 {[%emt 0:01:55]} Nd6 {[%emt 0:00:47]} 34. Rg4 {[%emt 0:04:47]} c4 {[%emt 0:05:41]} 35. Nxc4 {[%emt 0:03:23]} Rxb3 {[%emt 0:03:04]} 36. Rxb3 {[%emt 0:00:21]} Rxb3 {[%emt 0:00:04]} 37. Nxd6 {[%emt 0:00:23]} Kxd6 {[%emt 0:00:03]} 38. Kd3 {[%emt 0:00:06]} Rb5 {[%emt 0:00:31]} 39. Rh4 {[%emt 0:02:06]} h5 {[%emt 0:00:10]} 40. Kc2 {[%emt 0:00:53]} Kc6 {[%emt 0:01:21]} 41. Re4 {[%emt 0:00:31]} Kd6 {[%emt 0:00:37]} 42. Ra4 {[%emt 0:00:41]} Kc6 {[%emt 0:01:13]} 43. Rd4 {[%emt 0:00:37]} Kc7 {[%emt 0:02:29]} 44. Rf4 {[%emt 0:02:37]} Kd6 {[%emt 0:00:30]} 45. Rc4 {[%emt 0:01:13]} Kd7 {[%emt 0:01:03]} 46. Rd4+ {[%emt 0:00:33]} Kc7 {[%emt 0:00:25]} 47. c4 {[%emt 0:01:45]} Rf5 {[%emt 0:00:47]} 48. Kb3 {[%emt 0:00:08]} Kc6 {[%emt 0:00:37]} 49. Re4 {[%emt 0:00:31]} Kd6 {[%emt 0:00:42]} 50. Ka4 {[%emt 0:00:15]} Rc5 {[%emt 0:00:55]} 51. Kb3 {[%emt 0:00:11]} Rf5 {[%emt 0:00:23]} 52. Rh4 {[%emt 0:00:10]} Rg5 {[%emt 0:01:15]} 53. Rd4+ {[%emt 0:00:37]} Kc6 {[%emt 0:00:51]} 54. Rd8 {[%emt 0:00:28]} Kc7 {[%emt 0:00:53]} 55. Ra8 {[%emt 0:00:16]} Rc5 {[%emt 0:00:36]} 56. Kc3 {[%emt 0:00:20]} Rf5 {[%emt 0:00:24]} 57. Rh8 {[%emt 0:01:42]} Kd6 {[%emt 0:00:32]} 58. Kd4 {[%emt 0:00:23]} Rg5 {[%emt 0:00:25]} 59. Rh7 {[%emt 0:01:07]} Rg4+ {[%emt 0:00:22]} 60. Kc3 {[%emt 0:00:05]} Rg5 {[%emt 0:00:08]} 61. Rh8 {[%emt 0:00:21]} Kc6 {[%emt 0:00:59]} 62. Kb3 {[%emt 0:00:11]} Kd6 {[%emt 0:00:27]} 63. Kc2 {[%emt 0:01:18]} Kc5 {[%emt 0:00:40]} 64. Kc3 {[%emt 0:00:08]} Kd6 {[%emt 0:00:11]} 65. Kd3 {[%emt 0:00:42]} Kc6 {[%emt 0:00:44]} 66. Ra8 {[%emt 0:00:20]} Rf5 {[%emt 0:00:38]} 67. Ra6+ {[%emt 0:00:41]} Kd7 {[%emt 0:00:20]} 68. Kd4 {[%emt 0:00:08]} h4 {[%emt 0:00:39]} 69. gxh4 {[%emt 0:00:13]} Rh5 {[%emt 0:00:22]} 70. h3 {[%emt 0:01:01]} e5+ {[%emt 0:00:41]} 71. Kd5 {[%emt 0:00:31]} e4+ {[%emt 0:00:10]} 72. Kxe4 {[%emt 0:00:05]} Rxh4+ {[%emt 0:00:03]} 73. Kd5 {[%emt 0:00:06]} Rh5+ {[%emt 0:00:06]} 74. Kd4 {[%emt 0:00:04]} Rxh3 {[%emt 0:00:20]} 75. Rxa5 {[%emt 0:00:07]} Rh4+ {[%emt 0:00:31]} 76. Kc3 {[%emt 0:00:05]} Rh6 {[%emt 0:00:30]} 77. Ra7+ {[%emt 0:00:19]} Kc8 {[%emt 0:00:03]} 78. Kb4 {[%emt 0:00:03]} Kb8 {[%emt 0:00:35]} 79. Rf7 {[%emt 0:00:05]} Rh5 {[%emt 0:00:37]} 80. c5 {[%emt 0:00:07]} Rh6 {[%emt 0:00:22]} 81. Re7 {[%emt 0:00:24]} Kc8 {[%emt 0:00:09]} 82. Kb5 {[%emt 0:00:06]} Rg6 {[%emt 0:00:18]} 83. Ra7 {[%emt 0:00:04]} Rh6 {[%emt 0:00:14]} 84. Ra4 {[%emt 0:00:16]} Kc7 {[%emt 0:00:59]} 85. Rf4 {[%emt 0:00:04]} Rg6 {[%emt 0:00:25]} 86. Rf5 {[%emt 0:00:03]} 1/2-1/2

[Event "Asian Zonal-ch 3.5 Women 2019"]
[Site "Zi Bo"]
[Date "2019.09.05"]
[Round "2.2"]
[White "Song, Yuxin"]
[Black "Zhu, Jiner"]
[Result "0-1"]
[ECO "E05"]
[WhiteElo "2305"]
[BlackElo "2471"]
[Annotator "ChessBase"]
[PlyCount "78"]
[EventDate "2019.09.05"]
[EventType "swiss"]
[EventCountry "CHN"]
[SourceTitle "playchess.com"]
[Source "ChessBase"]
[SourceQuality "1"]
[TimeControl "5400+30"]

1. d4 {[%emt 0:00:00]} Nf6 {[%emt 0:00:00]} 2. c4 {[%emt 0:00:00]} e6 {[%emt 0:00:00]} 3. g3 {[%emt 0:00:00]} d5 {[%emt 0:00:00]} 4. Bg2 {[%emt 0:00:00]} Be7 {[%emt 0:00:00]} 5. Nf3 {[%emt 0:00:07]} O-O {[%emt 0:00:05]} 6. O-O {[%emt 0:00:08]} dxc4 {[%emt 0:00:04]} 7. Qc2 {[%emt 0:00:26]} b5 {[%emt 0:12:16]} 8. a4 {[%emt 0:09:34]} b4 {[%emt 0:00:06]} 9. Nfd2 {[%emt 0:00:06]} Nd5 {[%emt 0:00:05]} 10. Nxc4 {[%emt 0:00:50]} c5 {[%emt 0:00:14]} 11. dxc5 {[%emt 0:07:03]} Ba6 {[%emt 0:00:17]} 12. Ne3 {[%emt 0:07:05]} Nd7 {[%emt 0:01:22]} 13. Rd1 {[%emt 0:21:59]} Rc8 {[%emt 0:00:12]} 14. c6 {[%emt 0:02:35]} Nb8 {[%emt 0:00:26]} 15. Nxd5 {[%emt 0:02:38]} exd5 {[%emt 0:00:14]} 16. Bxd5 {[%emt 0:01:32]} Nxc6 {[%emt 0:00:10]} 17. Qe4 {[%emt 0:09:04]} Kh8 {[%emt 0:12:12]} 18. Bf4 {[%emt 0:10:12]} Bf6 {[%emt 0:09:36]} 19. e3 {[%emt 0:09:29]} Re8 {[%emt 0:12:41]} 20. Qg2 {[%emt 0:03:03]} Ne7 {[%emt 0:01:35]} 21. Bb3 {[%emt 0:02:28]} Qxd1+ {[%emt 0:00:29]} 22. Bxd1 {[%emt 0:00:14]} Rc1 {[%emt 0:00:03]} 23. Qf3 {[%emt 0:03:02]} Rd8 {[%emt 0:00:11]} 24. Nd2 {[%emt 0:02:50]} Rxa1 {[%emt 0:00:06]} 25. e4 {[%emt 0:00:33]} Ng6 {[%emt 0:00:35]} 26. e5 {[%emt 0:07:05]} Nxe5 {[%emt 0:00:26]} 27. Bxe5 {[%emt 0:00:25]} Rxd2 {[%emt 0:00:13]} 28. Qa8+ {[%emt 0:00:42]} Rd8 {[%emt 0:00:13]} 29. Qxa7 {[%emt 0:00:29]} Raxd1+ {[%emt 0:00:04]} 30. Kg2 {[%emt 0:00:05]} Bf1+ {[%emt 0:00:04]} 31. Kf3 {[%emt 0:00:14]} Bxe5 {[%emt 0:00:06]} 32. Qxf7 {[%emt 0:01:29]} Bxb2 {[%emt 0:00:05]} 33. a5 {[%emt 0:00:22]} b3 {[%emt 0:00:09]} 34. Qb7 {[%emt 0:00:36]} Bf6 {[%emt 0:00:14]} 35. a6 {[%emt 0:00:28]} Bxa6 {[%emt 0:00:06]} 36. Qxa6 {[%emt 0:00:08]} b2 {[%emt 0:00:05]} 37. Qb7 {[%emt 0:00:38]} b1=Q {[%emt 0:00:06]} 38. Qxb1 {[%emt 0:00:07]} Rxb1 {[%emt 0:00:04]} 39. h4 {[%emt 0:00:07]} Rd2 {[%emt 0:00:05]} 0-1

[Event "Asian Zonal-ch 3.5 Women 2019"]
[Site "Zi Bo"]
[Date "2019.09.05"]
[Round "2.3"]
[White "Huang, Qian"]
[Black "Zhao, Shengxin"]
[Result "1-0"]
[ECO "E05"]
[WhiteElo "2429"]
[BlackElo "2162"]
[Annotator "ChessBase"]
[PlyCount "151"]
[EventDate "2019.09.05"]
[EventType "swiss"]
[EventCountry "CHN"]
[SourceTitle "playchess.com"]
[Source "ChessBase"]
[SourceQuality "1"]
[TimeControl "5400+30"]

1. d4 {[%emt 0:02:41]} Nf6 {[%emt 0:00:00]} 2. c4 {[%emt 0:00:09]} e6 {[%emt 0:00:00]} 3. Nf3 {[%emt 0:00:07]} d5 {[%emt 0:00:00]} 4. g3 {[%emt 0:00:32]} Be7 {[%emt 0:00:15]} 5. Bg2 {[%emt 0:00:05]} O-O {[%emt 0:00:08]} 6. O-O {[%emt 0:00:04]} dxc4 {[%emt 0:00:06]} 7. Qc2 {[%emt 0:00:11]} a6 {[%emt 0:00:34]} 8. a4 {[%emt 0:00:12]} Bd7 {[%emt 0:00:19]} 9. Qxc4 {[%emt 0:07:31]} Bc6 {[%emt 0:00:35]} 10. Bg5 {[%emt 0:00:20]} Bd5 {[%emt 0:02:41]} 11. Qc2 {[%emt 0:00:38]} Be4 {[%emt 0:01:28]} 12. Qc1 {[%emt 0:00:15]} h6 {[%emt 0:09:56]} 13. Bxf6 {[%emt 0:01:44]} Bxf6 {[%emt 0:00:09]} 14. Nc3 {[%emt 0:00:07]} Bxf3 {[%emt 0:00:34]} 15. Bxf3 {[%emt 0:00:07]} c6 {[%emt 0:00:48]} 16. Rd1 {[%emt 0:00:11]} a5 {[%emt 0:03:42]} 17. Ne4 {[%emt 0:02:37]} Na6 {[%emt 0:04:57]} 18. h4 {[%emt 0:01:46]} Nb4 {[%emt 0:02:23]} 19. e3 {[%emt 0:07:18]} Be7 {[%emt 0:05:06]} 20. Qc4 {[%emt 0:01:02]} Qb6 {[%emt 0:15:32]} 21. Kg2 {[%emt 0:05:17]} Nd5 {[%emt 0:13:30]} 22. b3 {[%emt 0:03:46]} Rfd8 {[%emt 0:04:23]} 23. Rac1 {[%emt 0:06:25]} Qb4 {[%emt 0:05:10]} 24. Qc2 {[%emt 0:03:28]} Rac8 {[%emt 0:01:47]} 25. Qc4 {[%emt 0:26:40]} Qxc4 {[%emt 0:05:44]} 26. bxc4 {[%emt 0:02:20]} Nb6 {[%emt 0:03:48]} 27. c5 {[%emt 0:07:31]} Nxa4 {[%emt 0:00:21]} 28. Ra1 {[%emt 0:00:14]} b5 {[%emt 0:06:46]} 29. cxb6 {[%emt 0:00:20]} Nxb6 {[%emt 0:00:06]} 30. Rxa5 {[%emt 0:00:05]} Ra8 {[%emt 0:02:49]} 31. Rxa8 {[%emt 0:01:46]} Rxa8 {[%emt 0:00:29]} 32. Rc1 {[%emt 0:01:09]} Rc8 {[%emt 0:00:29]} 33. h5 {[%emt 0:11:36]} Kf8 {[%emt 0:08:17]} 34. Be2 {[%emt 0:03:01]} f5 {[%emt 0:01:53]} 35. Nd2 {[%emt 0:02:49]} c5 {[%emt 0:00:34]} 36. dxc5 {[%emt 0:01:46]} Rxc5 {[%emt 0:00:05]} 37. Rb1 {[%emt 0:00:46]} Nd5 {[%emt 0:02:04]} 38. Nb3 {[%emt 0:00:33]} Rc3 {[%emt 0:00:45]} 39. Nd4 {[%emt 0:00:07]} Kf7 {[%emt 0:00:13]} 40. Bf3 {[%emt 0:01:14]} Nb4 {[%emt 0:00:08]} 41. g4 {[%emt 0:00:36]} Nc2 {[%emt 0:01:21]} 42. Ne2 {[%emt 0:00:37]} Rc5 {[%emt 0:00:22]} 43. gxf5 {[%emt 0:00:25]} exf5 {[%emt 0:00:05]} 44. Nf4 {[%emt 0:00:16]} Bd6 {[%emt 0:00:18]} 45. Nd5 {[%emt 0:01:08]} Ke6 {[%emt 0:00:36]} 46. Nb6 {[%emt 0:00:52]} f4 {[%emt 0:01:02]} 47. e4 {[%emt 0:00:30]} Nd4 {[%emt 0:00:29]} 48. Nd5 {[%emt 0:00:05]} Rb5 {[%emt 0:00:30]} 49. Rd1 {[%emt 0:00:20]} Nxf3 {[%emt 0:00:28]} 50. Kxf3 {[%emt 0:00:02]} Rb3+ {[%emt 0:00:29]} 51. Kg4 {[%emt 0:00:02]} Rb2 {[%emt 0:00:10]} 52. Rf1 {[%emt 0:00:23]} Rb5 {[%emt 0:00:55]} 53. f3 {[%emt 0:00:55]} Rb2 {[%emt 0:00:29]} 54. Nxf4+ {[%emt 0:01:43]} Bxf4 {[%emt 0:00:24]} 55. Kxf4 {[%emt 0:00:01]} Rh2 {[%emt 0:00:09]} 56. Rg1 {[%emt 0:00:16]} Rh4+ {[%emt 0:00:54]} 57. Rg4 {[%emt 0:00:24]} Rxh5 {[%emt 0:00:04]} 58. Rxg7 {[%emt 0:00:03]} Rh4+ {[%emt 0:01:01]} 59. Kg3 {[%emt 0:00:47]} Rh1 {[%emt 0:00:10]} 60. Ra7 {[%emt 0:00:26]} Ke5 {[%emt 0:00:55]} 61. Ra5+ {[%emt 0:00:25]} Kd6 {[%emt 0:00:31]} 62. Kg2 {[%emt 0:01:40]} Rh4 {[%emt 0:00:18]} 63. Kg3 {[%emt 0:00:11]} Rh1 {[%emt 0:00:05]} 64. Ra2 {[%emt 0:00:22]} Ke5 {[%emt 0:00:36]} 65. Rh2 {[%emt 0:00:39]} Rg1+ {[%emt 0:00:04]} 66. Kf2 {[%emt 0:00:02]} Rg6 {[%emt 0:00:27]} 67. Rh5+ {[%emt 0:00:34]} Kf6 {[%emt 0:00:40]} 68. f4 {[%emt 0:00:05]} Kg7 {[%emt 0:00:23]} 69. Ra5 {[%emt 0:00:16]} Rb6 {[%emt 0:00:12]} 70. Kf3 {[%emt 0:00:23]} Kg6 {[%emt 0:01:03]} 71. Kg4 {[%emt 0:00:11]} Rb4 {[%emt 0:01:08]} 72. Ra6+ {[%emt 0:00:34]} Kg7 {[%emt 0:00:10]} 73. e5 {[%emt 0:00:22]} h5+ {[%emt 0:00:06]} 74. Kg5 {[%emt 0:00:05]} h4 {[%emt 0:00:13]} 75. Rg6+ {[%emt 0:00:23]} Kf7 {[%emt 0:00:15]} 76. Rh6 {[%emt 0:00:36]} 1-0

[Event "Asian Zonal-ch 3.5 Women 2019"]
[Site "Zi Bo"]
[Date "2019.09.05"]
[Round "2.4"]
[White "Gu, Tianlu"]
[Black "Zhai, Mo"]
[Result "1/2-1/2"]
[ECO "B11"]
[WhiteElo "2239"]
[BlackElo "2360"]
[Annotator "ChessBase"]
[PlyCount "92"]
[EventDate "2019.09.05"]
[EventType "swiss"]
[EventCountry "CHN"]
[SourceTitle "playchess.com"]
[Source "ChessBase"]
[SourceQuality "1"]
[TimeControl "5400+30"]

1. e4 {[%emt 0:03:00]} c6 {[%emt 0:00:00]} 2. Nc3 {[%emt 0:00:16]} d5 {[%emt 0:00:05]} 3. Nf3 {[%emt 0:00:08]} dxe4 {[%emt 0:00:15]} 4. Nxe4 {[%emt 0:00:07]} Nf6 {[%emt 0:00:11]} 5. Qe2 {[%emt 0:00:19]} Nxe4 {[%emt 0:00:13]} 6. Qxe4 {[%emt 0:00:07]} Qa5 {[%emt 0:00:08]} 7. Bc4 {[%emt 0:07:41]} Bf5 {[%emt 0:00:14]} 8. Qf4 {[%emt 0:00:40]} e6 {[%emt 0:00:10]} 9. c3 {[%emt 0:07:17]} Be7 {[%emt 0:02:03]} 10. O-O {[%emt 0:01:45]} Nd7 {[%emt 0:01:37]} 11. b4 {[%emt 0:03:24]} Qb6 {[%emt 0:03:27]} 12. Re1 {[%emt 0:03:17]} Bg6 {[%emt 0:10:33]} 13. d3 {[%emt 0:04:52]} Qd8 {[%emt 0:12:22]} 14. Be3 {[%emt 0:03:59]} O-O {[%emt 0:04:08]} 15. Rad1 {[%emt 0:02:35]} Bf6 {[%emt 0:03:26]} 16. Bd4 {[%emt 0:10:00]} Bxd4 {[%emt 0:13:02]} 17. Qxd4 {[%emt 0:00:09]} Nb6 {[%emt 0:00:14]} 18. Qf4 {[%emt 0:11:54]} a5 {[%emt 0:09:24]} 19. a3 {[%emt 0:04:49]} Na4 {[%emt 0:12:04]} 20. Qc1 {[%emt 0:04:55]} c5 {[%emt 0:02:42]} 21. bxc5 {[%emt 0:07:21]} Nxc5 {[%emt 0:00:09]} 22. Ne5 {[%emt 0:01:03]} Rc8 {[%emt 0:02:26]} 23. Bb5 {[%emt 0:06:59]} Qc7 {[%emt 0:05:57]} 24. Qe3 {[%emt 0:05:45]} b6 {[%emt 0:02:03]} 25. d4 {[%emt 0:01:43]} Nb7 {[%emt 0:00:26]} 26. Ba6 {[%emt 0:02:05]} Rb8 {[%emt 0:09:41]} 27. Bxb7 {[%emt 0:00:09]} Rxb7 {[%emt 0:00:55]} 28. c4 {[%emt 0:00:20]} Bh5 {[%emt 0:03:24]} 29. Rc1 {[%emt 0:00:17]} f6 {[%emt 0:00:37]} 30. Nd3 {[%emt 0:00:41]} Bf7 {[%emt 0:00:05]} 31. c5 {[%emt 0:00:29]} Rbb8 {[%emt 0:00:24]} 32. Rc3 {[%emt 0:03:42]} Qc6 {[%emt 0:01:22]} 33. Rec1 {[%emt 0:00:55]} Rfd8 {[%emt 0:00:27]} 34. h3 {[%emt 0:00:42]} h6 {[%emt 0:00:45]} 35. cxb6 {[%emt 0:02:04]} Qxb6 {[%emt 0:00:06]} 36. Nc5 {[%emt 0:00:30]} Qd6 {[%emt 0:01:02]} 37. Rd3 {[%emt 0:01:04]} Qd5 {[%emt 0:00:48]} 38. Na6 {[%emt 0:00:55]} Rb2 {[%emt 0:00:17]} 39. Nc7 {[%emt 0:00:52]} Qd6 {[%emt 0:00:20]} 40. a4 {[%emt 0:00:06]} Rb4 {[%emt 0:01:24]} 41. Nb5 {[%emt 0:00:25]} Qd5 {[%emt 0:00:12]} 42. Rc5 {[%emt 0:00:19]} Qd7 {[%emt 0:00:36]} 43. Rc7 {[%emt 0:00:30]} Qd5 {[%emt 0:00:03]} 44. Rc5 {[%emt 0:00:05]} Qd7 {[%emt 0:00:42]} 45. Rc7 {[%emt 0:01:37]} Qd5 {[%emt 0:00:06]} 46. Rc5 {[%emt 0:00:05]} Qd7 {[%emt 0:00:13]} 1/2-1/2

[Event "Asian Zonal-ch 3.5 Women 2019"]
[Site "Zi Bo"]
[Date "2019.09.05"]
[Round "2.5"]
[White "Zhang, Lanlin"]
[Black "Li, Xueyi"]
[Result "1/2-1/2"]
[ECO "B13"]
[WhiteElo "2203"]
[BlackElo "2323"]
[Annotator "ChessBase"]
[PlyCount "63"]
[EventDate "2019.09.05"]
[EventType "swiss"]
[EventCountry "CHN"]
[SourceTitle "playchess.com"]
[Source "ChessBase"]
[SourceQuality "1"]
[TimeControl "5400+30"]

1. e4 {[%emt 0:00:38]} c6 {[%emt 0:00:00]} 2. d4 {[%emt 0:00:03]} d5 {[%emt 0:00:00]} 3. exd5 {[%emt 0:00:10]} cxd5 {[%emt 0:00:00]} 4. Bd3 {[%emt 0:00:03]} Nc6 {[%emt 0:00:25]} 5. c3 {[%emt 0:00:06]} Qc7 {[%emt 0:00:15]} 6. Ne2 {[%emt 0:00:09]} e6 {[%emt 0:03:09]} 7. O-O {[%emt 0:03:10]} Bd6 {[%emt 0:00:11]} 8. h3 {[%emt 0:13:18]} Nge7 {[%emt 0:01:11]} 9. b4 {[%emt 0:01:31]} Ng6 {[%emt 0:02:40]} 10. Na3 {[%emt 0:00:16]} a6 {[%emt 0:01:38]} 11. f4 {[%emt 0:01:25]} O-O {[%emt 0:05:59]} 12. Nc2 {[%emt 0:00:21]} Bd7 {[%emt 0:09:16]} 13. Ne1 {[%emt 0:03:16]} Nce7 {[%emt 0:07:29]} 14. Nf3 {[%emt 0:09:00]} f6 {[%emt 0:05:01]} 15. Qc2 {[%emt 0:16:11]} Bb5 {[%emt 0:05:57]} 16. Bxb5 {[%emt 0:08:59]} axb5 {[%emt 0:00:09]} 17. Ne1 {[%emt 0:00:03]} Nh4 {[%emt 0:13:45]} 18. Nd3 {[%emt 0:02:37]} e5 {[%emt 0:02:47]} 19. fxe5 {[%emt 0:00:23]} fxe5 {[%emt 0:00:23]} 20. Bg5 {[%emt 0:00:03]} Nhg6 {[%emt 0:01:34]} 21. dxe5 {[%emt 0:01:57]} Nxe5 {[%emt 0:02:24]} 22. Nd4 {[%emt 0:04:50]} h6 {[%emt 0:10:26]} 23. Bf4 {[%emt 0:19:58]} N7c6 {[%emt 0:07:41]} 24. Bxe5 {[%emt 0:06:04]} Bxe5 {[%emt 0:07:10]} 25. Ne6 {[%emt 0:02:10]} Rxf1+ {[%emt 0:05:17]} 26. Rxf1 {[%emt 0:00:03]} Qe7 {[%emt 0:00:12]} 27. Nxe5 {[%emt 0:03:10]} Qxe6 {[%emt 0:01:16]} 28. Nf3 {[%emt 0:00:34]} d4 {[%emt 0:02:19]} 29. Nxd4 {[%emt 0:00:04]} Nxd4 {[%emt 0:00:05]} 30. cxd4 {[%emt 0:00:02]} Rxa2 {[%emt 0:01:32]} 31. Qc5 {[%emt 0:01:37]} Rd2 {[%emt 0:01:46]} 32. Qf8+ {[%emt 0:02:25]} 1/2-1/2

[Event "Asian Zonal-ch 3.5 Women 2019"]
[Site "Zi Bo"]
[Date "2019.09.05"]
[Round "2.6"]
[White "Ning, Kaiyu"]
[Black "Ren, Xiaoyi"]
[Result "1-0"]
[ECO "D23"]
[WhiteElo "2354"]
[BlackElo "2231"]
[Annotator "ChessBase"]
[PlyCount "97"]
[EventDate "2019.09.05"]
[EventType "swiss"]
[EventCountry "CHN"]
[SourceTitle "playchess.com"]
[Source "ChessBase"]
[SourceQuality "1"]
[TimeControl "5400+30"]

1. d4 {[%emt 0:00:00]} d5 {[%emt 0:00:00]} 2. c4 {[%emt 0:00:00]} c6 {[%emt 0:00:00]} 3. Nf3 {[%emt 0:00:00]} Nf6 {[%emt 0:00:00]} 4. Qc2 {[%emt 0:00:04]} dxc4 {[%emt 0:00:00]} 5. Qxc4 {[%emt 0:00:09]} Bf5 {[%emt 0:00:03]} 6. g3 {[%emt 0:00:12]} e6 {[%emt 0:00:13]} 7. Bg2 {[%emt 0:00:10]} Nbd7 {[%emt 0:00:04]} 8. O-O {[%emt 0:00:21]} Be7 {[%emt 0:00:07]} 9. e3 {[%emt 0:00:51]} O-O {[%emt 0:00:37]} 10. Qe2 {[%emt 0:00:21]} Qc7 {[%emt 0:01:11]} 11. Rd1 {[%emt 0:05:25]} c5 {[%emt 0:00:30]} 12. Nc3 {[%emt 0:03:34]} cxd4 {[%emt 0:00:49]} 13. Nxd4 {[%emt 0:02:30]} Bg6 {[%emt 0:00:20]} 14. e4 {[%emt 0:27:16]} a6 {[%emt 0:02:16]} 15. Nb3 {[%emt 0:07:57]} Rad8 {[%emt 0:05:47]} 16. Bf4 {[%emt 0:03:13]} e5 {[%emt 0:00:33]} 17. Be3 {[%emt 0:04:36]} Nc5 {[%emt 0:01:30]} 18. Nxc5 {[%emt 0:13:19]} Bxc5 {[%emt 0:02:20]} 19. Qc4 {[%emt 0:00:37]} Bb6 {[%emt 0:01:07]} 20. Qxc7 {[%emt 0:00:13]} Bxc7 {[%emt 0:00:03]} 21. f3 {[%emt 0:00:54]} Rxd1+ {[%emt 0:02:29]} 22. Rxd1 {[%emt 0:00:03]} Rd8 {[%emt 0:00:06]} 23. Rxd8+ {[%emt 0:04:22]} Bxd8 {[%emt 0:00:05]} 24. Bh3 {[%emt 0:00:53]} Ne8 {[%emt 0:01:12]} 25. Bc5 {[%emt 0:03:24]} b6 {[%emt 0:00:49]} 26. Ba3 {[%emt 0:00:36]} f6 {[%emt 0:00:32]} 27. Bc8 {[%emt 0:03:59]} a5 {[%emt 0:01:29]} 28. Nd5 {[%emt 0:06:38]} Bf7 {[%emt 0:03:46]} 29. Bd7 {[%emt 0:04:47]} g6 {[%emt 0:05:29]} 30. Kf2 {[%emt 0:01:27]} f5 {[%emt 0:00:36]} 31. Bxe8 {[%emt 0:01:55]} Bxe8 {[%emt 0:00:09]} 32. Bd6 {[%emt 0:00:12]} fxe4 {[%emt 0:03:45]} 33. fxe4 {[%emt 0:00:01]} Kf7 {[%emt 0:01:23]} 34. Bxe5 {[%emt 0:00:04]} Bc6 {[%emt 0:00:13]} 35. Ke3 {[%emt 0:00:59]} Ke6 {[%emt 0:03:32]} 36. Kd4 {[%emt 0:00:02]} b5 {[%emt 0:01:50]} 37. Bc7 {[%emt 0:01:17]} Bxc7 {[%emt 0:01:02]} 38. Nxc7+ {[%emt 0:00:04]} Kd6 {[%emt 0:00:05]} 39. Nd5 {[%emt 0:00:16]} h5 {[%emt 0:01:05]} 40. Nf4 {[%emt 0:01:41]} Be8 {[%emt 0:00:05]} 41. h4 {[%emt 0:00:20]} Bf7 {[%emt 0:00:29]} 42. a3 {[%emt 0:00:04]} Be8 {[%emt 0:01:36]} 43. Nd3 {[%emt 0:00:32]} Bf7 {[%emt 0:00:41]} 44. Nc5 {[%emt 0:00:12]} a4 {[%emt 0:00:27]} 45. Nd3 {[%emt 0:00:51]} Be8 {[%emt 0:00:08]} 46. Nf4 {[%emt 0:01:00]} Bf7 {[%emt 0:00:53]} 47. e5+ {[%emt 0:00:25]} Ke7 {[%emt 0:00:03]} 48. Kc5 {[%emt 0:00:13]} Be8 {[%emt 0:00:46]} 49. Nd5+ {[%emt 0:01:27]} 1-0